[Event "53rd Indian Junior Open-ch 2024"]
[Site "Karnal"]
[Date "2024.09.19"]
[Round "5.10"]
[White "Kushal O"]
[Black "Lakshmi Charan Naidu G"]
[Result "1/2-1/2"]
[ECO "B36"]
[WhiteElo "2130"]
[BlackElo "1912"]
[Annotator "RC"]
[PlyCount "103"]
[EventDate "2024.09.16"]
[EventType "swiss"]
[EventCountry "IND"]
[SourceTitle "playchess.com"]
[Source "ChessBase"]
[SourceQuality "1"]
[TimeControl "5400+30"]

1. e4 {[%emt 1:31:00]} c5 {[%emt 1:31:00]} 2. Nf3 {[%emt 0:00:30]} g6 {[%emt 0:00:30]} 3. d4 {[%emt 0:00:30]} cxd4 {[%emt 0:00:30]} 4. Nxd4 {[%emt 0:00:30]} Nc6 {[%emt 0:00:30]} 5. c4 {[%emt 0:00:30]} Nf6 {[%emt 0:00:30]} 6. Nc3 {[%emt 0:00:30]} d6 {[%emt 0:00:30]} 7. Be2 {[%emt 0:00:30]} Nxd4 {[%emt 0:00:30]} 8. Qxd4 {[%emt 0:00:30]} Bg7 {[%emt 0:00:30]} 9. O-O {[%emt 0:00:30]} O-O {[%emt 0:00:30]} 10. Qd3 {[%emt 0:00:30]} Be6 {[%emt 0:00:30]} 11. Be3 {[%emt 0:00:30]} Qa5 {[%emt 0:00:30]} 12. Bd2 {[%emt 0:00:30]} Rfc8 {[%emt 0:00:30]} 13. b3 {[%emt 0:00:30]} Qd8 {[%emt 0:00:30]} 14. Be3 {[%emt 0:00:30]} Nd7 {[%emt 0:00:30]} 15. Rac1 Nc5 {[%emt 0:00:30]} 16. Qb1 {[%emt 0:01:00]} Qf8 {[%emt 0:00:30]} 17. b4 {[%emt 0:00:30]} Nd7 {[%emt 0:00:30]} 18. Nd5 {[%emt 0:00:30]} a5 {[%emt 0:00:30]} 19. a3 {[%emt 0:00:30]} axb4 {[%emt 0:00:30]} 20. axb4 {[%emt 0:00:30]} Ra1 {[%emt 0:00:30]} 21. Qb3 {[%emt 0:00:30]} Rxc1 {[%emt 0:00:30]} 22. Rxc1 {[%emt 0:00:30]} Qd8 {[%emt 0:00:30]} 23. Rc2 {[%emt 0:00:30]} Nf6 {[%emt 0:00:30]} 24. f3 {[%emt 0:00:30]} Nxd5 {[%emt 0:00:30]} 25. exd5 {[%emt 0:00:30]} Bf5 {[%emt 0:00:30]} 26. Ra2 {[%emt 0:00:30]} Ra8 {[%emt 0:00:30]} 27. c5 {[%emt 0:00:30]} Bd7 {[%emt 0:00:30]} 28. Bc4 {[%emt 0:00:30]} Qb8 {[%emt 0:00:30]} 29. Qc2 {[%emt 0:00:30]} h5 {[%emt 0:00:30]} 30. c6 {[%emt 0:00:30]} Rxa2 {[%emt 0:00:30]} 31. Qxa2 {[%emt 0:00:30]} bxc6 {[%emt 0:00:30]} 32. dxc6 {[%emt 0:00:30]} Qxb4 {[%emt 0:00:30]} 33. Bxf7+ {[%emt 0:00:30]} Kh7 {[%emt 0:00:30]} 34. Bf2 {[%emt 0:00:30]} Bd4 {[%emt 0:00:30]} 35. Qe2 {[%emt 0:00:30]} Qb1+ {[%emt 0:00:30]} 36. Qf1 {[%emt 0:00:30]} Bxf2+ {[%emt 0:00:30]} 37. Kxf2 {[%emt 0:00:30]} Qb6+ {[%emt 0:00:30]} 38. Kg3 {[%emt 0:00:30]} Qxc6 {[%emt 0:00:30]} 39. Qd3 {[%emt 0:00:30]} Bf5 {[%emt 0:00:30]} 40. Qe3 {[%emt 0:00:30]} Qc7 {[%emt 0:00:30]} 41. Bb3 {[%emt 0:00:30]} d5+ {[%emt 0:00:30]} 42. Kf2 {[%emt 0:00:30]} Qd6 {[%emt 0:00:30]} 43. Qd4 {[%emt 0:00:30]} Be6 {[%emt 0:00:30]} 44. h4 {[%emt 0:00:30]} Bf7 {[%emt 0:00:30]} 45. f4 {[%emt 0:00:30]} Qe6 {[%emt 0:00:30]} 46. Bd1 {[%emt 0:00:30]} Qf5 {[%emt 0:00:30]} 47. Bf3 {[%emt 0:00:30]} Qc2+ {[%emt 0:00:30]} 48. Kg3 {[%emt 0:00:30]} Qf5 {[%emt 0:00:30]} 49. Kf2 {[%emt 0:00:30]} Qd7 {[%emt 0:00:30]} 50. Bd1 {[%emt 0:00:30]} Be6 {[%emt 0:00:30]} 51. Bf3 {[%emt 0:00:30]} Qd6 {[%emt 0:00:30]} 52. Kg3 {[%emt 0:00:30]} 1/2-1/2

[Event "53rd Indian Junior Open-ch 2024"]
[Site "Karnal"]
[Date "2024.09.20"]
[Round "6.3"]
[White "Manish Anto Cristiano F"]
[Black "Arul Prakash N"]
[Result "1-0"]
[ECO "D45"]
[WhiteElo "2364"]
[BlackElo "1922"]
[Annotator "RC"]
[PlyCount "105"]
[EventDate "2024.09.16"]
[EventType "swiss"]
[EventCountry "IND"]
[SourceTitle "playchess.com"]
[Source "ChessBase"]
[SourceQuality "1"]
[TimeControl "5400+30"]

1. Nf3 {[%emt 0:00:02]} d5 {[%emt 0:08:05]} 2. e3 {[%emt 0:00:16]} Nf6 {[%emt 0:00:17]} 3. c4 {[%emt 0:00:13]} e6 {[%emt 0:00:30]} 4. Nc3 {[%emt 0:00:13]} c6 {[%emt 0:00:45]} 5. d4 {[%emt 0:01:26]} Nbd7 {[%emt 0:00:24]} 6. Be2 {[%emt 0:01:05]} dxc4 {[%emt 0:00:56]} 7. a4 {[%emt 0:00:12]} Bd6 {[%emt 0:07:42]} 8. Nd2 {[%emt 0:00:43]} e5 {[%emt 0:04:50]} 9. Nxc4 {[%emt 0:00:29]} Bc7 {[%emt 0:00:11]} 10. O-O {[%emt 0:05:36]} O-O {[%emt 0:00:33]} 11. b3 {[%emt 0:03:17]} Re8 {[%emt 0:05:23]} 12. Ba3 {[%emt 0:05:30]} exd4 {[%emt 0:06:26]} 13. Qxd4 {[%emt 0:01:44]} Nb6 {[%emt 0:02:01]} 14. Nd6 {[%emt 0:04:37]} Bxd6 {[%emt 0:01:20]} 15. Bxd6 {[%emt 0:02:59]} Nfd5 {[%emt 0:01:27]} 16. Ba3 {[%emt 0:04:08]} Qf6 {[%emt 0:05:36]} 17. Qxf6 {[%emt 0:04:02]} Nxf6 {[%emt 0:00:03]} 18. Rfd1 {[%emt 0:01:59]} Be6 {[%emt 0:06:36]} 19. Rab1 {[%emt 0:01:31]} Nbd5 {[%emt 0:01:40]} 20. Na2 {[%emt 0:05:24]} a5 {[%emt 0:07:03]} 21. Bd3 {[%emt 0:03:04]} Rab8 {[%emt 0:03:08]} 22. e4 {[%emt 0:01:41]} Nf4 {[%emt 0:08:40]} 23. Bc2 {[%emt 0:11:07]} Rbc8 {[%emt 0:15:21]} 24. Bd6 {[%emt 0:05:33]} g5 {[%emt 0:01:42]} 25. Nc3 {[%emt 0:03:10]} b5 {[%emt 0:00:53]} 26. h4 {[%emt 0:05:11]} h6 {[%emt 0:00:30]} 27. hxg5 {[%emt 0:00:53]} hxg5 {[%emt 0:00:03]} 28. Bxf4 {[%emt 0:01:33]} gxf4 {[%emt 0:00:01]} 29. f3 {[%emt 0:00:07]} Kg7 {[%emt 0:07:58]} 30. Kf2 {[%emt 0:01:38]} b4 {[%emt 0:01:31]} 31. Ne2 {[%emt 0:00:14]} Nh5 {[%emt 0:00:07]} 32. Bd3 {[%emt 0:06:56]} Red8 {[%emt 0:02:08]} 33. Bc4 {[%emt 0:00:39]} Kf6 {[%emt 0:01:55]} 34. Rbc1 {[%emt 0:03:35]} Rxd1 {[%emt 0:00:54]} 35. Rxd1 {[%emt 0:00:04]} Ke5 {[%emt 0:00:30]} 36. Nc1 {[%emt 0:00:41]} Bxc4 {[%emt 0:00:46]} 37. bxc4 {[%emt 0:00:01]} f5 {[%emt 0:00:30]} 38. exf5 {[%emt 0:03:28]} Kxf5 {[%emt 0:00:08]} 39. Nb3 {[%emt 0:00:07]} Nf6 {[%emt 0:00:48]} 40. Rd6 {[%emt 0:01:22]} c5 {[%emt 0:00:34]} 41. Ra6 {[%emt 0:00:32]} Nd7 {[%emt 0:00:21]} 42. Rxa5 {[%emt 0:00:38]} Ne5 {[%emt 0:00:21]} 43. Rxc5 {[%emt 0:01:43]} Rxc5 {[%emt 0:00:10]} 44. Nxc5 {[%emt 0:00:05]} Nxc4 {[%emt 0:00:03]} 45. Nb3 {[%emt 0:00:08]} Ke5 {[%emt 0:00:26]} 46. g4 {[%emt 0:01:30]} Kd5 {[%emt 0:01:26]} 47. a5 {[%emt 0:01:59]} Kc6 {[%emt 0:00:43]} 48. Ke2 {[%emt 0:01:05]} Ne5 {[%emt 0:00:25]} 49. Nd4+ {[%emt 0:00:09]} Kd5 {[%emt 0:00:32]} 50. a6 {[%emt 0:00:32]} Nd7 {[%emt 0:00:34]} 51. a7 {[%emt 0:00:30]} Nb6 {[%emt 0:00:02]} 52. Kd3 {[%emt 0:00:08]} Na8 {[%emt 0:00:21]} 53. Ne2 {[%emt 0:00:18]} 1-0

[Event "53rd Indian Junior Open-ch 2024"]
[Site "Karnal"]
[Date "2024.09.20"]
[Round "6.4"]
[White "Sourath Biswas"]
[Black "Yohan Yadav Tarala"]
[Result "1-0"]
[ECO "D04"]
[WhiteElo "2305"]
[BlackElo "1973"]
[Annotator "RC"]
[PlyCount "71"]
[EventDate "2024.09.16"]
[EventType "swiss"]
[EventCountry "IND"]
[SourceTitle "playchess.com"]
[Source "ChessBase"]
[SourceQuality "1"]
[TimeControl "5400+30"]

1. Nf3 {[%emt 0:00:23]} d5 {[%emt 0:01:24]} 2. e3 {[%emt 0:00:07]} c5 {[%emt 0:01:44]} 3. d4 {[%emt 0:00:08]} Nf6 {[%emt 0:01:48]} 4. b3 {[%emt 0:00:52]} cxd4 {[%emt 0:01:14]} 5. exd4 {[%emt 0:00:07]} Bg4 {[%emt 0:01:22]} 6. Nbd2 {[%emt 0:28:01]} Nc6 {[%emt 0:09:14]} 7. Bb2 {[%emt 0:00:13]} e6 {[%emt 0:05:52]} 8. h3 {[%emt 0:00:19]} Bh5 {[%emt 0:03:11]} 9. Bd3 {[%emt 0:03:53]} Be7 {[%emt 0:01:27]} 10. O-O {[%emt 0:00:50]} O-O {[%emt 0:00:53]} 11. a3 {[%emt 0:00:03]} Nd7 {[%emt 0:06:33]} 12. Qb1 {[%emt 0:12:49]} Bg6 {[%emt 0:17:45]} 13. c4 {[%emt 0:00:55]} dxc4 {[%emt 0:04:21]} 14. bxc4 {[%emt 0:00:24]} Nb6 {[%emt 0:03:19]} 15. Bxg6 {[%emt 0:00:56]} hxg6 {[%emt 0:00:08]} 16. Qc2 {[%emt 0:05:41]} Rc8 {[%emt 0:04:05]} 17. Rac1 {[%emt 0:08:10]} Na5 {[%emt 0:09:33]} 18. Qd3 {[%emt 0:00:52]} Bf6 {[%emt 0:05:45]} 19. Rc2 {[%emt 0:02:44]} e5 {[%emt 0:06:21]} 20. Rfc1 {[%emt 0:04:24]} Na4 {[%emt 0:02:55]} 21. Ne4 {[%emt 0:04:51]} Rxc4 {[%emt 0:04:30]} 22. Ba1 {[%emt 0:00:05]} b5 {[%emt 0:02:03]} 23. Rxc4 {[%emt 0:01:31]} Nxc4 {[%emt 0:01:16]} 24. Qb3 {[%emt 0:00:13]} Qd5 {[%emt 0:01:24]} 25. Nxf6+ {[%emt 0:00:06]} gxf6 {[%emt 0:00:02]} 26. dxe5 {[%emt 0:00:09]} fxe5 {[%emt 0:01:28]} 27. Nxe5 {[%emt 0:00:05]} Qd2 {[%emt 0:02:28]} 28. Rd1 {[%emt 0:05:23]} Nc5 {[%emt 0:00:58]} 29. Nxc4 {[%emt 0:01:35]} bxc4 {[%emt 0:00:59]} 30. Qf3 {[%emt 0:00:05]} Qg5 {[%emt 0:00:51]} 31. Qc3 {[%emt 0:00:10]} Qh6 {[%emt 0:00:31]} 32. Qxc4 {[%emt 0:00:14]} Ne6 {[%emt 0:00:30]} 33. Re1 {[%emt 0:00:27]} Re8 {[%emt 0:00:31]} 34. Re4 {[%emt 0:00:08]} Qh5 {[%emt 0:00:30]} 35. Qc3 {[%emt 0:00:41]} g5 {[%emt 0:00:31]} 36. Rxe6 {[%emt 0:00:42]} 1-0

[Event "53rd Indian Junior Open-ch 2024"]
[Site "Karnal"]
[Date "2024.09.20"]
[Round "6.6"]
[White "Md Bashiq Imrose"]
[Black "Shadhursshaan R"]
[Result "0-1"]
[ECO "E06"]
[WhiteElo "2065"]
[BlackElo "1933"]
[Annotator "RC"]
[PlyCount "70"]
[EventDate "2024.09.16"]
[EventType "swiss"]
[EventCountry "IND"]
[SourceTitle "playchess.com"]
[Source "ChessBase"]
[SourceQuality "1"]
[TimeControl "5400+30"]

1. d4 {[%emt 0:00:15]} Nf6 {[%emt 0:03:45]} 2. Nf3 {[%emt 0:00:01]} e6 {[%emt 0:00:16]} 3. c4 {[%emt 0:00:16]} d5 {[%emt 0:00:18]} 4. g3 {[%emt 0:00:05]} Be7 {[%emt 0:00:21]} 5. Bg2 {[%emt 0:00:10]} O-O {[%emt 0:00:11]} 6. O-O {[%emt 0:00:05]} c6 {[%emt 0:02:50]} 7. Nc3 {[%emt 0:01:13]} a5 {[%emt 0:00:47]} 8. b3 {[%emt 0:00:48]} Nbd7 {[%emt 0:01:35]} 9. Qd3 {[%emt 0:04:54]} Bb4 {[%emt 0:07:55]} 10. Ne5 {[%emt 0:07:41]} Nxe5 {[%emt 0:08:10]} 11. dxe5 {[%emt 0:00:02]} Nd7 {[%emt 0:01:37]} 12. f4 {[%emt 0:01:38]} dxc4 {[%emt 0:01:44]} 13. bxc4 {[%emt 0:01:49]} Nxe5 {[%emt 0:00:30]} 14. Qxd8 {[%emt 0:05:20]} Rxd8 {[%emt 0:01:06]} 15. Na4 {[%emt 0:05:30]} Nxc4 {[%emt 0:00:20]} 16. Be4 {[%emt 0:00:17]} e5 {[%emt 0:10:43]} 17. Bd3 {[%emt 0:04:08]} Bh3 {[%emt 0:01:18]} 18. a3 {[%emt 0:06:28]} Bxf1 {[%emt 0:04:08]} 19. axb4 {[%emt 0:00:05]} b5 {[%emt 0:11:16]} 20. Kxf1 {[%emt 0:00:45]} axb4 {[%emt 0:00:13]} 21. Bxc4 {[%emt 0:02:43]} Rd1+ {[%emt 0:00:08]} 22. Kf2 {[%emt 0:00:04]} bxc4 {[%emt 0:05:43]} 23. e3 {[%emt 0:01:19]} exf4 {[%emt 0:03:25]} 24. gxf4 {[%emt 0:00:33]} Rd5 {[%emt 0:00:15]} 25. Bb2 {[%emt 0:01:11]} Rd2+ {[%emt 0:00:34]} 26. Kf3 {[%emt 0:00:09]} Rxb2 {[%emt 0:00:10]} 27. Rd1 {[%emt 0:00:03]} Rc2 {[%emt 0:00:26]} 28. Nb6 {[%emt 0:00:07]} Re8 {[%emt 0:00:11]} 29. f5 {[%emt 0:00:08]} b3 {[%emt 0:00:59]} 30. f6 {[%emt 0:00:05]} b2 {[%emt 0:00:37]} 31. Rg1 {[%emt 0:00:17]} Rc1 {[%emt 0:00:21]} 32. Rxg7+ {[%emt 0:00:05]} Kh8 {[%emt 0:00:03]} 33. Nxc4 {[%emt 0:00:09]} b1=Q {[%emt 0:00:06]} 34. Nd6 {[%emt 0:00:05]} Rf1+ {[%emt 0:00:24]} 35. Kg2 {[%emt 0:00:09]} Rg1+ {[%emt 0:00:11]} 0-1

[Event "53rd Indian Junior Open-ch 2024"]
[Site "Karnal"]
[Date "2024.09.20"]
[Round "6.7"]
[White "Hari Ganesh T"]
[Black "Arshpreet Singh"]
[Result "0-1"]
[ECO "A13"]
[WhiteElo "2029"]
[BlackElo "1905"]
[Annotator "RC"]
[PlyCount "50"]
[EventDate "2024.09.16"]
[EventType "swiss"]
[EventCountry "IND"]
[SourceTitle "playchess.com"]
[Source "ChessBase"]
[SourceQuality "1"]
[TimeControl "5400+30"]

1. Nf3 {[%emt 0:00:24]} Nf6 {[%emt 0:00:14]} 2. c4 {[%emt 0:00:07]} e6 {[%emt 0:00:04]} 3. b3 {[%emt 0:00:05]} d5 {[%emt 0:00:05]} 4. e3 {[%emt 0:00:03]} Be7 {[%emt 0:00:53]} 5. Bb2 {[%emt 0:00:07]} O-O {[%emt 0:00:46]} 6. Be2 {[%emt 0:00:24]} b6 {[%emt 0:00:51]} 7. O-O {[%emt 0:00:15]} Bb7 {[%emt 0:00:31]} 8. cxd5 {[%emt 0:00:07]} Nxd5 {[%emt 0:02:45]} 9. Na3 {[%emt 0:02:17]} c5 {[%emt 0:01:43]} 10. d4 {[%emt 0:07:51]} cxd4 {[%emt 0:02:13]} 11. Nxd4 {[%emt 0:00:06]} Nc6 {[%emt 0:11:27]} 12. Ba6 {[%emt 0:03:57]} Bxa6 {[%emt 0:03:19]} 13. Nxc6 {[%emt 0:00:02]} Qc7 {[%emt 0:01:07]} 14. Nxe7+ {[%emt 0:00:38]} Qxe7 {[%emt 0:06:20]} 15. Re1 {[%emt 0:00:11]} Nb4 {[%emt 0:02:03]} 16. Bc3 {[%emt 0:21:27]} Nd3 {[%emt 0:08:29]} 17. Qg4 {[%emt 0:00:03]} e5 {[%emt 0:00:49]} 18. Qa4 {[%emt 0:00:03]} Bb7 {[%emt 0:00:05]} 19. Re2 {[%emt 0:11:08]} Qg5 {[%emt 0:00:31]} 20. g3 {[%emt 0:00:47]} Qh5 {[%emt 0:02:16]} 21. Ree1 {[%emt 0:01:49]} Qf3 {[%emt 0:00:15]} 22. e4 {[%emt 0:00:01]} Qxf2+ {[%emt 0:00:17]} 23. Kh1 {[%emt 0:00:03]} Nxe1 {[%emt 0:00:23]} 24. Rxe1 {[%emt 0:00:02]} Qf3+ {[%emt 0:00:05]} 25. Kg1 {[%emt 0:00:04]} Qxc3 {[%emt 0:00:03]} 0-1

[Event "53rd Indian Junior Open-ch 2024"]
[Site "Karnal"]
[Date "2024.09.20"]
[Round "6.8"]
[White "Akshat Sureka"]
[Black "Sadbhav Rautela"]
[Result "0-1"]
[ECO "A12"]
[WhiteElo "2008"]
[BlackElo "1817"]
[Annotator "RC"]
[PlyCount "110"]
[EventDate "2024.09.16"]
[EventType "swiss"]
[EventCountry "IND"]
[SourceTitle "playchess.com"]
[Source "ChessBase"]
[SourceQuality "1"]
[TimeControl "5400+30"]

1. c4 {[%emt 0:00:49]} c6 {[%emt 0:00:17]} 2. Nf3 {[%emt 0:00:13]} d5 {[%emt 0:00:58]} 3. e3 {[%emt 0:00:07]} Nf6 {[%emt 0:00:05]} 4. b3 {[%emt 0:00:14]} Bf5 {[%emt 0:00:05]} 5. Bb2 {[%emt 0:00:13]} e6 {[%emt 0:00:08]} 6. Be2 {[%emt 0:00:15]} h6 {[%emt 0:00:04]} 7. O-O {[%emt 0:00:52]} Be7 {[%emt 0:00:01]} 8. d3 {[%emt 0:09:24]} O-O {[%emt 0:00:46]} 9. Nbd2 {[%emt 0:00:18]} a5 {[%emt 0:00:17]} 10. a3 {[%emt 0:00:23]} Nbd7 {[%emt 0:00:55]} 11. Rc1 {[%emt 0:11:06]} Nc5 {[%emt 0:12:44]} 12. Ne5 {[%emt 0:07:10]} Nfd7 {[%emt 0:16:50]} 13. Nxd7 {[%emt 0:05:12]} Qxd7 {[%emt 0:00:26]} 14. cxd5 {[%emt 0:05:18]} exd5 {[%emt 0:04:04]} 15. Nf3 {[%emt 0:00:17]} Qd8 {[%emt 0:03:57]} 16. Nd4 {[%emt 0:09:50]} Bg6 {[%emt 0:02:31]} 17. b4 {[%emt 0:05:52]} axb4 {[%emt 0:00:59]} 18. axb4 {[%emt 0:00:01]} Ne6 {[%emt 0:07:00]} 19. f4 {[%emt 0:06:23]} Bf6 {[%emt 0:09:24]} 20. f5 {[%emt 0:05:46]} Nxd4 {[%emt 0:00:14]} 21. Bxd4 {[%emt 0:00:12]} Bxd4 {[%emt 0:00:16]} 22. exd4 {[%emt 0:00:02]} Bh7 {[%emt 0:00:18]} 23. b5 {[%emt 0:06:48]} Qf6 {[%emt 0:11:09]} 24. bxc6 {[%emt 0:02:22]} bxc6 {[%emt 0:02:45]} 25. Kh1 {[%emt 0:00:08]} Ra6 {[%emt 0:00:25]} 26. Qd2 {[%emt 0:03:25]} Qxd4 {[%emt 0:00:49]} 27. f6 {[%emt 0:00:50]} g5 {[%emt 0:02:18]} 28. Rf3 {[%emt 0:10:04]} c5 {[%emt 0:09:37]} 29. h4 {[%emt 0:00:43]} Rxf6 {[%emt 0:04:59]} 30. Rxf6 {[%emt 0:04:12]} Qxf6 {[%emt 0:00:02]} 31. hxg5 {[%emt 0:00:55]} hxg5 {[%emt 0:03:06]} 32. Rxc5 {[%emt 0:00:07]} Qa1+ {[%emt 0:01:46]} 33. Rc1 {[%emt 0:00:41]} Qe5 {[%emt 0:00:04]} 34. d4 {[%emt 0:00:31]} Qe7 {[%emt 0:02:23]} 35. Bf3 {[%emt 0:00:22]} Be4 {[%emt 0:00:34]} 36. Re1 {[%emt 0:01:34]} Kg7 {[%emt 0:01:48]} 37. Bxe4 {[%emt 0:01:12]} dxe4 {[%emt 0:00:03]} 38. Qa5 {[%emt 0:02:55]} Kg6 {[%emt 0:01:16]} 39. Qb6+ {[%emt 0:00:59]} f6 {[%emt 0:00:27]} 40. Qc6 {[%emt 0:00:05]} Rh8+ {[%emt 0:00:50]} 41. Kg1 {[%emt 0:00:01]} Re8 {[%emt 0:00:02]} 42. Rf1 {[%emt 0:02:34]} Qe6 {[%emt 0:00:53]} 43. Qc5 {[%emt 0:00:56]} Rd8 {[%emt 0:00:36]} 44. Rb1 {[%emt 0:00:29]} Qd5 {[%emt 0:00:51]} 45. Qxd5 {[%emt 0:00:33]} Rxd5 {[%emt 0:00:01]} 46. Rb4 {[%emt 0:00:32]} Kf5 {[%emt 0:01:06]} 47. Kf2 {[%emt 0:00:18]} Kf4 {[%emt 0:00:28]} 48. g3+ {[%emt 0:00:42]} Kg4 {[%emt 0:00:04]} 49. Ke3 {[%emt 0:00:32]} f5 {[%emt 0:00:03]} 50. Rc4 {[%emt 0:00:20]} Ra5 {[%emt 0:01:02]} 51. Rc5 {[%emt 0:00:20]} Ra3+ {[%emt 0:00:07]} 52. Kf2 {[%emt 0:00:45]} Rf3+ {[%emt 0:00:18]} 53. Ke2 {[%emt 0:00:03]} Rxg3 {[%emt 0:00:26]} 54. Re5 {[%emt 0:00:37]} Rd3 {[%emt 0:00:34]} 55. d5 {[%emt 0:00:11]} Kf4 {[%emt 0:00:11]} 0-1

[Event "53rd Indian Junior Open-ch 2024"]
[Site "Karnal"]
[Date "2024.09.20"]
[Round "6.10"]
[White "Vishal Choudary B"]
[Black "Adireddy Arjun"]
[Result "0-1"]
[ECO "D30"]
[WhiteElo "1937"]
[BlackElo "2343"]
[Annotator "TA"]
[PlyCount "62"]
[EventDate "2024.09.16"]
[EventType "swiss"]
[EventCountry "IND"]
[SourceTitle "playchess.com"]
[Source "ChessBase"]
[SourceQuality "1"]
[TimeControl "5400+30"]

{[%evp 12,62,20,22,25,24,26,0,0,0,0,0,0,6,32,36,35,22,20,41,37,0,48,-15,47,45,46,-39,-22,-73,-31,-23,-23,-76,-55,-56,-39,-112,-40,-134,-143,-395,-230,-197,-217,-361,-356,-656,-655,-29988,-29989,-29998,-29999]} 1. d4 {[%emt 1:31:00]} d5 {[%emt 1:31:00]} 2. c4 {[%emt 0:00:30]} c6 {[%emt 0:00:30]} 3. Nf3 {[%emt 0:00:30]} Nf6 {[%emt 0:00:30]} 4. e3 {[%emt 0:00:30]} e6 {[%emt 0:00:30]} 5. Nbd2 {[%emt 0:00:30]} Nbd7 {[%emt 0:00:30]} 6. b3 {[%emt 0:00:30]} Bd6 {[%emt 0:00:30]} 7. Bb2 {[%emt 0:00:30]} b6 {[%emt 0:00:30]} 8. Bd3 {[%emt 0:00:30]} Bb7 {[%emt 0:00:30]} 9. e4 {[%emt 0:00:30]} dxe4 {[%emt 0:00:30] The position is equal.} 10. Nxe4 {[%emt 0:00:30]} Nxe4 {[%emt 0:00:30]} 11. Bxe4 {[%emt 0:00:30]} Nf6 {[%emt 0:00:30]} 12. Bc2 {[%emt 0:00:30]} c5 {[%emt 0:00:30]} 13. Qe2 {[%emt 0:00:30]} cxd4 {[%emt 0:00:30]} 14. O-O-O {[%emt 0:00:30]} Qe7 {[%emt 0:00:30]} 15. Nxd4 {[%emt 0:00:30]} O-O {[%emt 0:00:30][%cal Of8d8]} 16. Kb1 {[%emt 0:00:30]} Rad8 {[%emt 0:00:30]} (16... Ba3 $11) 17. f3 {[%emt 0:00:30]} (17. Nb5 $14 Bc5 18. Nxa7) 17... Bc5 {[%emt 0:00:30]} (17... a6 $1 $11) 18. g4 $14 {[%emt 0:00:30]} Rd7 {[%emt 0:00:30]} 19. Qd3 {[%emt 0:00:30]} ({White should try} 19. Rd3 $14) 19... Bxd4 {[%emt 0:00:30]} 20. g5 {[%emt 0:00:30]} (20. Bxd4 $11 Rxd4 (20... e5 21. Rhe1 $14) 21. Qxd4 Bxf3 22. g5 Bxd1 23. Rxd1) 20... Ne4 {[%emt 0:00:30]} 21. fxe4 {[%emt 0:00:30]} e5 {[%emt 0:00:30]} 22. Bc1 {[%emt 0:00:30]} (22. h4 $11) 22... a6 {[%emt 0:00:30][%cal Ob6b5] Black is more active.} 23. h4 {[%emt 0:00:30]} Rc8 {[%emt 0:00:30]} 24. g6 {[%emt 0:00:30]} b5 {[%emt 0:00:30]} ({Better is} 24... fxg6 $17 {[%cal Ob6b5]} 25. h5 gxh5 26. Rxh5 g6) 25. h5 {[%emt 0:00:30]} (25. cxb5 $15 Rdc7 26. gxf7+ Qxf7 27. Rd2 (27. Rhf1 Qg6 $19) 27... axb5 28. Qe2) 25... bxc4 $17 {[%emt 0:00:30]} (25... hxg6 $2 26. hxg6 Qe6 27. Qg3 (27. cxb5 fxg6 28. Qe2 Rf7 $11) (27. gxf7+ Rxf7 28. Qg3 bxc4 $14) 27... Qxg6 28. Qh3 $18) 26. bxc4 {[%emt 0:00:30][%mdl 8192] Now White is beyond hope.} (26. Qe2 $17 {was called for.}) 26... a5 {[%emt 0:00:30]} (26... hxg6 27. hxg6 Qe6 (27... fxg6 $2 28. c5 $18) 28. Rh4 $16 (28. gxf7+ Rxf7 29. Rh4 Bc6 $16)) (26... Rb8 $142 27. Bb3 a5) 27. Ba3 $19 {[%emt 0:00:30]} Qe6 {[%emt 0:00:30] [#] Strongly threatening ...Ba6.} 28. Qf3 {[%emt 0:00:30]} (28. c5 $142 Rb8 (28... fxg6 $2 29. Bb3 $18) (28... hxg6 29. hxg6 Rb8 30. Qb3 $17) 29. Qb3) 28... Ba6 {[%emt 0:00:30]} (28... Rxc4 29. Bb3 a4 30. Bxc4 Qxc4 31. Bb2 $17) (28... fxg6 29. hxg6 Qxg6 30. Rhf1 $19) (28... hxg6 29. hxg6 fxg6 (29... Rxc4 30. Rh8+ Kxh8 31. Qh5+ Kg8 32. Qh7#) (29... Qxg6 30. Rh5 $17) 30. Bb2 $17) (28... Qxc4 29. Bb3 Rb8 30. Bb2 $16 (30. Bxc4 $2 Bxe4+ 31. Kc1 Be3+ 32. Qxe3 Rb1#) (30. gxf7+ Rxf7 31. Bxc4 Bxe4+ 32. Kc1 Bxf3 $14)) 29. c5 $2 {[%emt 0:00:30]} (29. Bb2 Bxc4 (29... fxg6 30. Bxd4 Rxd4 31. c5 $17) 30. Ka1) 29... Rb8+ {[%emt 0:00:30]} ({Weaker is} 29... fxg6 30. Bb3 Bc4 31. hxg6 $19) (29... hxg6 30. hxg6 Qxg6 31. Rh5 Rb8+ 32. Bb3 $11) 30. Kc1 {[%emt 0:00:30]} Qxa2 {[%emt 0:00:30]} 31. c6 {[%emt 0:00:30]} Bb2+ {[%emt 0:00:30] Weighted Error Value: White=0.87/Black=0.26 (precise) .  Loses game:     	White=1     	---        Mistake:       	White=8     	Black=4      Inaccurate:     	White=3     	Black=2      OK:         	White=7     	Black=6      Best:        	White=2     	Black=2} 0-1